Cogmind - Beta 13 --- EXPLORER MODE // 2024.03.19 @ 01:28:01 // Winter2019/RPGLIKE Player: H3-RMN Result: Destroyed by Tracker with Linked Autogun Performance ------------- Evolutions (8) 4000 Regions Visited (18) 3600 Robots Destroyed (190) 950 Value Destroyed (10104) 10104 Prototype IDs (36) 720 Alien Tech Used (3) 600 Bonus (10396) 10396 TOTAL SCORE: 30370 Bonus ------- High Alert Combat Kills 1215 Follower Combat Kills 1419 Entered DSFs 1000 Network Hubs Disabled 800 Found Hidden Lab 3000 Used Core Reset Matrix 3000 Pursued by Intercept 500 Friendly Fire -538 Cogmind --------- Core Integrity 0/1600 Matter 255/450 Energy 1700/1700 System Corruption 4% Temperature Cool (0) Movement Immobile (Siege) Location -2/Research Parts ------- > --- POWER (3) -------- Singularity Reactor > --- PROPULSION (7) --- Medium Treads Medium Treads Medium Treads Biometal Heavy Treads Advanced Heavy Siege Treads > --- UTILITY (10) ----- Experimental Power Amplifier Experimental Energy Well Compact Matter Pod Transport Network Coupler Layered Light Armor Plating Heavy Regenerative Plating Improved Focal Shield System Shield Dynamic Insulation System > --- WEAPON (4) ------- Hypervelocity EM Gauss Rifle Hypervelocity EM Gauss Rifle HERF Cannon Helical Railgun > --- INVENTORY (5) ---- Light Antimatter Reactor Peak State ------------ > --- POWER ------------ Graviton Reactor Quantum Reactor Quantum Reactor > --- PROPULSION ------- Biometal Heavy Treads Advanced Heavy Siege Treads Advanced Heavy Siege Treads Combat Linear Gravjet > --- UTILITY ---------- Advanced Signal Interpreter Long-range Terrain Scanner Advanced Salvage Targeting Computer Precision Energy Filter Quantum Capacitor Advanced Phase Shifter Heavy Regenerative Plating Improved Shield Generator > --- WEAPON ----------- Hypervelocity EM Gauss Rifle Hypervelocity EM Gauss Rifle Enhanced Nova Cannon Enhanced Nova Cannon > --- INVENTORY -------- Protomatter Deep Network Scanner Authchip [Propulsion] Gamma Bomb Array Hellfire Missile Launcher [Rating: 195] Favorites ----------- Power Quantum Reactor Engine Ion Engine Power Core Nuclear Core Reactor Quantum Reactor Propulsion Advanced Heavy Siege Treads Treads Advanced Heavy Siege Treads Wheel Wheel Hover Unit Combat Linear Gravjet Flight Unit Improved Surge Thruster Utility Improved Terrain Scanner Device Improved Terrain Scanner Storage Experimental Energy Well Processor Advanced Signal Interpreter Hackware Hacking Suite Protection Light Armor Plating Weapon Enhanced Nova Cannon Energy Gun Hypervelocity EM Gauss Rifle Energy Cannon Enhanced Nova Cannon Ballistic Gun Minigun Ballistic Cannon Light Cannon Launcher Gamma Bomb Array Special Weapon Improved Plasma Cutter Impact Weapon Powered Hammer Slashing Weapon Ionic Axe Special Melee Weapon Dirty Datajack Build | -11 -10 -10 -10 -8 -7 -7 -6 -5 -5 -4 -4 -4 -4 -4 -3 -3 -3 -2 ------- Run | Yrd Mat Min Sub Mat Fac DSF Fac Fac DSF Fac Ext Cet Arc Hub Res Arm Lab Res Slots Evolved 19 | 4 . 2 . 2 1 2 4 . 1 2 . . . . 1 . . . Power 2 | . . 1 . . . . . . 1 . . . . . . . . . Propulsion 6 | 1 . . . . . 2 3 . . . . . . . . . . . Utility 9 | 2 . 1 . 1 1 . 1 . . 2 . . . . 1 . . . Weapon 2 | 1 . . . 1 . . . . . . . . . . . . . . Parts Attached 163 | 11 4 5 4 4 1 12 36 . 9 9 . . . 1 1 30 12 24 Power 18 | 1 1 1 . 1 . 2 2 . 2 . . . . . . 5 2 1 Engine 6 | 1 1 . . 1 . 2 1 . . . . . . . . . . . Core 4 | . . 1 . . . . 1 . 2 . . . . . . . . . Reactor 8 | . . . . . . . . . . . . . . . . 5 2 1 Propulsion 38 | 3 1 . 1 . . 4 13 . 2 4 . . . . . 4 . 6 Treads 10 | 1 . . 1 . . . . . . . . . . . . 3 . 5 Leg . | . . . . . . . . . . . . . . . . . . . Wheel 3 | 2 1 . . . . . . . . . . . . . . . . . Hover 1 | . . . . . . . . . . . . . . . . 1 . . Flight 24 | . . . . . . 4 13 . 2 4 . . . . . . . 1 Utility 65 | 4 . 2 1 2 1 2 11 . 3 5 . . . 1 1 13 6 13 Device 37 | 2 . 2 . 1 1 2 4 . 2 4 . . . 1 1 9 4 4 Storage 7 | . . . . . . . 2 . 1 . . . . . . 1 . 3 Processor 6 | . . . . . . . . . . 1 . . . . . 3 . 2 Hackware 3 | . . . . 1 . . . . . . . . . . . . 1 1 Protection 12 | 2 . . 1 . . . 5 . . . . . . . . . 1 3 Artifact . | . . . . . . . . . . . . . . . . . . . Weapon 42 | 3 2 2 2 1 . 4 10 . 2 . . . . . . 8 4 4 Energy Gun 7 | 1 . . . . . . . . . . . . . . . 1 3 2 Energy Cannon 6 | . 1 1 . . . . . . . . . . . . . 3 . 1 Ballistic Gun 6 | 2 . 1 1 . . . 1 . . . . . . . . . . 1 Ballistic Cannon 1 | . 1 . . . . . . . . . . . . . . . . . Launcher 11 | . . . . 1 . 1 4 . 1 . . . . . . 4 . . Special Weapon 2 | . . . . . . . 1 . . . . . . . . . 1 . Impact Weapon 1 | . . . . . . 1 . . . . . . . . . . . . Slashing Weapon 5 | . . . . . . . 4 . 1 . . . . . . . . . Piercing Weapon . | . . . . . . . . . . . . . . . . . . . Special Melee Weapon 3 | . . . 1 . . 2 . . . . . . . . . . . . Unidentified Prototypes 25 | . . . . 1 . . 7 . . 2 . . . . . 3 8 4 Corrupted Parts 2 | . . . . . . . 1 . 1 . . . . . . . . . System Corruption 5 | . . . . . . . 4 . 1 . . . . . . . . . Parts Lost 2 | . . . . . . . 2 . . . . . . . . . . . Power 2 | . . . . . . . 2 . . . . . . . . . . . Propulsion . | . . . . . . . . . . . . . . . . . . . Utility . | . . . . . . . . . . . . . . . . . . . Weapon . | . . . . . . . . . . . . . . . . . . . Highest Loss Streak 1 | . . . . . . . 1 . . . . . . . . . . . To Critical Strikes . | . . . . . . . . . . . . . . . . . . . Average Slot Usage (%) 86 | . 100 93 99 99 100 98 97 84 83 85 86 86 . 86 86 71 72 59 Engine 5 | . 12 10 10 8 7 5 5 5 1 . . . . . . . . . Core 5 | . . 6 10 8 7 6 5 5 13 14 13 13 . 13 13 . . . Reactor 4 | . . . . . . . . . . . . . . . . 12 12 3 Treads 8 | . . . 9 8 7 2 . . . . . . . . . 12 11 13 Wheel 7 | . 25 21 10 8 7 2 . . . . . . . . . . . . Hover 1 | . . . . . . . . . . . . . . . . 3 3 . Flight 3 | . . . . . . 15 26 36 34 33 31 31 . 31 30 . . 1 Device 19 | . 25 21 20 20 28 27 25 15 16 22 22 22 . 22 26 17 23 7 Processor 3 | . . . . . . . . . . . 4 4 . 4 4 11 8 2 Protection 9 | . 12 10 19 10 7 6 5 10 9 4 4 4 . 4 4 . 1 7 Energy Cannon 8 | . 9 10 10 8 7 5 . . . . . . . . . 9 7 3 Ballistic Gun 5 | . 8 6 9 8 7 6 . . . . . . . . . . . 3 Launcher 1 | . . . . 7 7 3 5 . 1 . . . . . . 2 . . Naked Turns 18 | . . . . . . . . . . . . . . . . 4 10 4 Heaviest Build 133 | 11 16 29 30 35 39 39 63 60 68 65 65 65 65 67 68 120 133 118 Greatest Support 266 | 20 26 26 26 19 19 38 66 66 75 76 76 86 86 76 76 250 266 254 Greatest Overweight (x) 3 | . . 1 2 3 2 2 1 . 1 1 . . . . . 1 . 1 Average Overweight (x) . | . . . 1 2 1 . . . . . . . . . . . . . Largest Inventory Capacity 5 | 2 3 3 4 4 4 4 5 5 5 5 5 5 5 5 5 5 5 5 Average Capacity 4 | 1 2 3 3 4 4 4 4 5 5 5 5 5 5 5 5 5 5 5 Most Carried 5 | . 3 3 4 4 4 4 5 5 5 5 5 5 5 5 5 5 5 1 Average Carried 3 | . 2 2 3 4 4 4 4 5 5 5 5 5 5 5 4 4 4 . Final Capacity 5 | 2 3 3 4 4 4 4 5 5 5 5 5 5 5 5 5 5 5 5 Final Carried 5 | . 3 3 4 4 4 4 5 5 5 5 5 5 5 5 4 5 . 1 Class Distribution -------------------- 51% | Hacker-Mutant 27% | Hacker-Skirmisher 8% | Hacker-Sprinter 6% | Hacker-Tank 4% | Hacker-Gunner Dominant Class ---------------- Hacker-Mutant | -10/Materials Hacker-Mutant | -10/Mines Hacker-Mutant | -10/Subcaves Hacker-Skirmisher | -8/Materials Hacker-Skirmisher | -7/Factory Hacker-Sprinter | -7/DSF Hacker-Sprinter | -6/Factory Hacker-Sprinter | -5/Factory Hacker-Sprinter | -5/DSF Hacker-Sprinter | -4/Factory Hacker-Scout | -4/Extension Hacker-Scout | -4/Cetus Hacker-Scout | -4/Archives Hacker-Scout | -4/Hub_04(d) Hacker-Ninja | -3/Research Hacker-Skirmisher | -3/Armory Hacker-Skirmisher | -3/Lab Hacker-Tank | -2/Research Resources | -11 -10 -10 -10 -8 -7 -7 -6 -5 -5 -4 -4 -4 -4 -4 -3 -3 -3 -2 ----------- Run | Yrd Mat Min Sub Mat Fac DSF Fac Fac DSF Fac Ext Cet Arc Hub Res Arm Lab Res Matter Collected 4276 | 350 358 78 452 181 . 159 1065 . 58 215 . . . . 96 601 105 558 Remotely 2037 | 105 358 78 423 181 . 159 733 . . . . . . . . . . . Salvage Created 8052 | 112 343 39 723 533 . 286 1405 . 139 . . . . . . 3085 140 1247 Parts 459 | 10 20 8 48 39 . 4 66 . 8 . . . . . . 165 9 82 Haulers Intercepted 4 | . 1 . . 1 . . 1 . . . . . . . . . . 1 Recyclers Shooed 2 | . . . . . . . 1 . . . . . . . . . . 1 Parts Field Recycled . | . . . . . . . . . . . . . . . . . . . Retrieved Matter . | . . . . . . . . . . . . . . . . . . . Parts Self-Destructed . | . . . . . . . . . . . . . . . . . . . Prevented . | . . . . . . . . . . . . . . . . . . . Kills | -11 -10 -10 -10 -8 -7 -7 -6 -5 -5 -4 -4 -4 -4 -4 -3 -3 -3 -2 ------- Run | Yrd Mat Min Sub Mat Fac DSF Fac Fac DSF Fac Ext Cet Arc Hub Res Arm Lab Res Combat Hostiles Destroyed 165 | . 9 3 20 13 . 3 35 . 4 . . . . . . 57 4 17 Melee 11 | . . . . . . . 10 . 1 . . . . . . . . . Guns 20 | . 3 . 5 7 . . . . . . . . . . . . . 5 Cannons 71 | . 6 3 12 4 . . . . . . . . . . . 40 4 2 AOE 32 | . . . . 2 . 3 16 . 3 . . . . . . 3 . 5 Classes Destroyed 22 | 2 3 . 3 2 . . 6 . 1 . . . . . . 2 . 3 Worker 2 | . . . . . . . . . . . . . . . . . . 2 Builder 8 | . . . . . . . 6 . . . . . . . . . . 2 Tunneler 4 | 4 . . . . . . . . . . . . . . . . . . Hauler 4 | . 1 . . 1 . . 1 . . . . . . . . . . 1 Recycler 2 | 1 . . . . . . . . . . . . . . . . . 1 Operator 1 | . . . . 1 . . . . . . . . . . . . . . Watcher 3 | . . . . 1 . . 1 . . . . . . . . . . 1 Swarmer 27 | . 2 . 4 2 . 3 9 . . . . . . . . 4 . 3 Cutter 4 | . . . . . . . . . 4 . . . . . . . . . Saboteur 1 | . . . . . . . . . . . . . . . . 1 . . Grunt 49 | . 7 3 . 10 . . 13 . . . . . . . . 10 3 3 Brawler 5 | . . . . . . . . . . . . . . . . 5 . . Duelist 2 | . . . . . . . 1 . . . . . . . . 1 . . Protector 2 | . . . . . . . 2 . . . . . . . . . . . Sentry 15 | . . . 2 1 . . 3 . . . . . . . . 8 . 1 Demolisher 2 | . . . . . . . . . . . . . . . . . . 2 Specialist 4 | . . . . . . . 1 . . . . . . . . 3 . . Hunter 22 | . . . . . . . 4 . . . . . . . . 12 . 6 Programmer 18 | . . . . . . . 2 . . . . . . . . 14 . 2 Artisan 1 | . . . 1 . . . . . . . . . . . . . . . Subdweller 14 | . . . 14 . . . . . . . . . . . . . . . Assembled 1 | . . . . . . . . . . . . . . . . . . 1 Best Kill Streak 16 | 3 3 2 4 4 . 3 16 . 4 . . . . . . 14 4 7 Combat Bots Only 14 | . 3 2 4 3 . 3 10 . 4 . . . . . . 14 4 5 Max Kills in Single Turn 3 | 1 1 1 1 2 . 3 3 . 2 . . . . . . 2 1 3 Gunslinging . | . . . . . . . . . . . . . . . . . . . Exploded 3 | . . . . 2 . 3 2 . 2 . . . . . . 1 . 3 Melee 1 | . . . . . . . 1 . 1 . . . . . . . . . Uniques/NPCs Destroyed 1 | . . . . . . . . . . . . . . . . . 1 . A5 (-3/Lab) Combat | -11 -10 -10 -10 -8 -7 -7 -6 -5 -5 -4 -4 -4 -4 -4 -3 -3 -3 -2 -------- Run | Yrd Mat Min Sub Mat Fac DSF Fac Fac DSF Fac Ext Cet Arc Hub Res Arm Lab Res Hostile Shots Fired 1250 | . 34 10 93 33 . 8 320 . 21 8 . 2 3 18 . 311 34 355 Missed 455 | . 7 2 33 6 . 1 149 . 8 7 . 1 2 10 . 144 14 71 Damage Taken 9509 | 7 202 72 656 237 . 174 1349 . 340 10 . 15 12 99 . 2093 221 4022 Core 6545 | 5 144 54 436 170 . 136 981 . 186 4 . 6 9 42 . 1625 172 2575 Absorbed by Shields 1133 | . . . . . . 62 408 . 109 4 . 5 5 5 . 454 81 . Reduced by Siege Mode 49 | . . . . . . . . . . . . . . . . 30 . 19 Redirected to Core 5931 | 5 84 34 373 133 . 136 792 . 186 4 . 6 9 42 . 1518 147 2462 Ignored by Resistances 8200 | 4 132 47 470 209 . 129 1217 . 268 9 . 11 10 62 . 1517 176 3939 Regen/Repaired (Parts) 323 | . . . . . . . . . . . . . . . . . . 323 Core Remaining (%) 90 | 99 . . 97 100 . 100 100 . 71 . . . . 60 . . 100 . Volleys Fired 560 | 11 33 7 106 32 . 7 16 . 2 . . . . . . 192 50 104 Largest 4 | 2 2 2 2 2 . 2 1 . 1 . . . . . . 3 1 4 Hottest 360 | 60 95 95 88 88 . 88 36 . 30 . . . . . . 360 120 206 Shots Fired 884 | 22 66 14 212 63 . 13 17 . 2 . . . . . . 204 50 221 Gun 386 | 22 34 5 106 31 . 6 1 . . . . . . . . . . 181 Cannon 463 | . 32 9 106 31 . 6 . . . . . . . . . 189 50 40 Launcher 35 | . . . . 1 . 1 16 . 2 . . . . . . 15 . . Special . | . . . . . . . . . . . . . . . . . . . Kinetic 291 | 18 43 7 106 31 . 6 1 . . . . . . . . . . 79 Thermal 264 | . 23 2 . . . . . . . . . . . . . 189 50 . Explosive 2 | . . . . . . . . . 2 . . . . . . . . . Electromagnetic 327 | 4 . 5 106 32 . 7 16 . . . . . . . . 15 . 142 Robot Hit Streak 99 | 9 13 14 65 91 . 16 12 . 5 . . . . . . 99 15 25 Robot Miss Streak 3 | 1 3 . 1 1 . 1 2 . . . . . . . . 2 2 3 Penetration Max 2 | . . . . . . . . . . . . . . . . . . 2 Secondary Targets . | . . . . . . . . . . . . . . . . . . . Capacitor 167 | . . . . . . . . . . . . . . . . 117 50 . Shots Hit Robots 768 | 17 52 13 141 56 . 15 67 . 8 . . . . . . 174 40 185 Core Hits 355 | 6 18 3 35 23 . 8 58 . 8 . . . . . . 100 14 82 Critical Kills 14 | . . . . . . . 4 . . . . . . . . 7 . 3 Critical Parts Destroyed 11 | . 1 . . . . . 8 . . . . . . . . . . 2 Critical Strikes 32 | . 1 2 2 1 . . 13 . . . . . . . . 7 . 6 Meltdown 7 | . . . . . . . . . . . . . . . . 7 . . Destroy 6 | . 1 . . . . . . . . . . . . . . . . 5 Blast 1 | . . 1 . . . . . . . . . . . . . . . . Corrupt 5 | . . 1 2 1 . . . . . . . . . . . . . 1 Smash 13 | . . . . . . . 13 . . . . . . . . . . . Melee Attacks 73 | . . . . . . 3 61 . 7 2 . . . . . . . . Impact 58 | . . . . . . . 58 . . . . . . . . . . . Slashing 9 | . . . . . . . . . 7 2 . . . . . . . . Piercing 6 | . . . . . . 3 3 . . . . . . . . . . . Sneak Attacks 3 | . . . . . . 2 1 . . . . . . . . . . . Combat Hostiles . | . . . . . . . . . . . . . . . . . . . Follow-up Attacks . | . . . . . . . . . . . . . . . . . . . Damage Inflicted 26502 | 235 784 286 2694 1347 . 389 5235 . 865 . . . . . . 8896 1362 4409 Guns 4689 | 196 342 69 1064 481 . 80 18 . . . . . . . . . . 2439 Cannons 12925 | . 442 217 1630 784 . 134 . . . . . . . . . 7286 1362 1070 Explosions 6183 | 39 . . . 82 . 166 2738 . 649 . . . . . . 1609 . 900 Melee 2704 | . . . . . . 9 2479 . 216 . . . . . . . . . Ramming 1 | . . . . . . . . . . . . . . . . 1 . . Kinetic 4599 | 153 454 109 1064 481 . 80 18 . . . . . . . . . . 2240 Thermal 10823 | 39 330 37 . . . 96 773 . . . . . . . . 7286 1362 900 Explosive 981 | . . . . . . . 332 . 649 . . . . . . . . . Electromagnetic 7394 | 43 . 140 1630 866 . 204 1633 . . . . . . . . 1609 . 1269 Impact 2475 | . . . . . . . 2475 . . . . . . . . . . . Slashing 216 | . . . . . . . . . 216 . . . . . . . . . Piercing 13 | . . . . . . 9 4 . . . . . . . . . . . Highest Corruption 5 | . . . . . . . 5 . 1 . . . . 1 . 3 3 3 Average Corruption 2 | . . . . . . . 4 . 1 . . . . 1 . 2 2 1 Corruption Purged . | . . . . . . . . . . . . . . . . . . . Corruption Blocked . | . . . . . . . . . . . . . . . . . . . Effects 43 | . . . . . . . 12 . . . . . . . . 24 3 4 Message Errors 12 | . . . . . . . 2 . . . . . . . . 6 2 2 Matter Fused 4 | . . . . . . . 3 . . . . . . . . 1 . . Heat Flow Errors 11 | . . . . . . . 2 . . . . . . . . 7 . 2 Energy Discharges 4 | . . . . . . . 2 . . . . . . . . 2 . . Parts Fused 1 | . . . . . . . 1 . . . . . . . . . . . Data Loss (minor) 5 | . . . . . . . . . . . . . . . . 5 . . Data Loss (major) 2 | . . . . . . . . . . . . . . . . 1 1 . Misfires 1 | . . . . . . . 1 . . . . . . . . . . . Alerts 2 | . . . . . . . 1 . . . . . . . . 1 . . Weapon Failures 1 | . . . . . . . . . . . . . . . . 1 . . Overload Shots . | . . . . . . . . . . . . . . . . . . . Overflow Damage 1011 | . . . 8 14 . 5 690 . 25 . . . . . . 189 28 52 Projectiles 268 | . . . 8 14 . . . . . . . . . . . 183 28 35 Explosions 124 | . . . . . . 5 71 . 25 . . . . . . 6 . 17 Melee 619 | . . . . . . . 619 . . . . . . . . . . . Knockbacks 11 | . 2 . . . . . 9 . . . . . . . . . . . Impact 9 | . . . . . . . 9 . . . . . . . . . . . Kinetic 2 | . 2 . . . . . . . . . . . . . . . . . Secondary . | . . . . . . . . . . . . . . . . . . . Self-Inflicted Damage 241 | 7 . . . . . . 49 . 51 . . . . . . 134 . . Shots 23 | 1 . . . . . . 5 . 1 . . . . . . 16 . . Rammed 1 | . . . . . . . . . . . . . . . . 1 . . Targets Rammed 1 | . . . . . . . . . . . . . . . . 1 . . Kicked . | . . . . . . . . . . . . . . . . . . . Crushed . | . . . . . . . . . . . . . . . . . . . Highest Temperature 363 | 21 159 214 34 262 . 8 288 . . . . 159 131 . . 363 193 303 Average Temperature 78 | 7 53 97 8 109 . 3 69 . . . . 123 108 . . 103 123 81 Received Heat Transfer 1582 | . 159 72 285 225 . . 345 . 30 8 . 6 . 9 . 191 18 234 Effects 3 | . . . . . . . . . . . . . . . . . . 3 Interference 2 | . . . . . . . . . . . . . . . . . . 2 Matter Decay 1 | . . . . . . . . . . . . . . . . . . 1 Siege Activations 2 | . . . . . . . . . . . . . . . . 1 . 1 Total Turns 44 | . . . . . . . . . . . . . . . . 28 . 16 Longest Duration 28 | . . . . . . . . . . . . . . . . 28 . 16 Robots Corrupted 20 | . . . 4 . . . 4 . . . . . . . . 7 . 5 Combat Hostiles 19 | . . . 4 . . . 3 . . . . . . . . 7 . 5 Parts Fried 50 | . . 2 13 2 . . 16 . . . . . . . . 9 . 8 Impact Corruptions 18 | . . . . . . . 18 . . . . . . . . . . . Robots Melted 7 | . . . . . . . . . . . . . . . . 7 . . Combat Hostiles 7 | . . . . . . . . . . . . . . . . 7 . . Parts Melted 31 | . 2 . . . . . . . . . . . . . . 25 4 . Heat Transferred 9457 | 50 666 74 . . . 100 700 . . . . . . . . 6068 1349 450 Parts Sabotaged 2 | . . . . . . . 2 . . . . . . . . . . . Parts Stolen . | . . . . . . . . . . . . . . . . . . . Parts Stripped . | . . . . . . . . . . . . . . . . . . . Power Chain Reactions 12 | 1 . . . 1 . 1 4 . . . . . . . . . . 5 Alert | -11 -10 -10 -10 -8 -7 -7 -6 -5 -5 -4 -4 -4 -4 -4 -3 -3 -3 -2 ------- Run | Yrd Mat Min Sub Mat Fac DSF Fac Fac DSF Fac Ext Cet Arc Hub Res Arm Lab Res Peak Influence 1209 | 25 225 93 . 423 50 181 1209 443 401 288 160 82 82 312 121 911 . 483 Initial 435 | . 12 43 . . 50 27 70 435 240 156 100 67 22 19 121 46 . . Average 254 | 13 112 67 . 235 50 116 573 438 364 226 117 77 37 151 121 335 . 142 Maximum Alert Level 4 | . 1 . . 2 . . 4 2 2 1 . . . 1 . 3 . 2 Low Security (%) 48 | 100 86 100 . 25 100 100 8 . . 22 100 100 100 63 100 25 . 70 Level 1 28 | . 13 . . 73 . . 13 . 33 77 . . . 36 . 41 . 27 Level 2 17 | . . . . 1 . . 55 100 66 . . . . . . 27 . 1 Level 3 3 | . . . . . . . 8 . . . . . . . . 6 . . Level 4 1 | . . . . . . . 14 . . . . . . . . . . . Level 5 . | . . . . . . . . . . . . . . . . . . . High Security . | . . . . . . . . . . . . . . . . . . . Max Security . | . . . . . . . . . . . . . . . . . . . Squads Dispatched 45 | . 2 . . 2 . 1 10 . 2 1 . . . 4 . 12 . 11 Investigation 14 | . 2 . . 1 . . 3 . . 1 . . . 3 . 4 . . Extermination 8 | . . . . . . . . . . . . . . . . 5 . 3 Reinforcement 16 | . . . . 1 . 1 3 . 2 . . . . 1 . 3 . 5 Assault 2 | . . . . . . . 2 . . . . . . . . . . . Garrison 2 | . . . . . . . 2 . . . . . . . . . . . Intercept 3 | . . . . . . . . . . . . . . . . . . 3 Searches Triggered . | . . . . . . . . . . . . . . . . . . . Construction Impeded 4 | . . . . . . . 1 . . . . . . . . . . 3 Haulers Reinforced 1 | . . . . . . . . . . . . . . . . . . 1 Active Scanning Responses . | . . . . . . . . . . . . . . . . . . . Cargo Convoy Interrupts 2 | . . . . . . . 1 . . . . . . . . . . 1 Stealth | -11 -10 -10 -10 -8 -7 -7 -6 -5 -5 -4 -4 -4 -4 -4 -3 -3 -3 -2 --------- Run | Yrd Mat Min Sub Mat Fac DSF Fac Fac DSF Fac Ext Cet Arc Hub Res Arm Lab Res Distress Signals 13 | . 2 . . . . . 2 . . 2 . . . . . 5 . 2 Communications Jammed . | . . . . . . . . . . . . . . . . . . . Distress Signals . | . . . . . . . . . . . . . . . . . . . Times Spotted 315 | . 18 4 47 21 . 6 65 . 9 6 . 5 3 14 . 81 4 32 Peak Tracking Total 15 | . 4 2 2 4 . 3 12 . 5 5 . 5 3 15 . 11 4 7 Tactical Retreats 20 | . . . 6 2 . . 7 . . 1 . . . . . 3 . 1 Traps | -11 -10 -10 -10 -8 -7 -7 -6 -5 -5 -4 -4 -4 -4 -4 -3 -3 -3 -2 ------- Run | Yrd Mat Min Sub Mat Fac DSF Fac Fac DSF Fac Ext Cet Arc Hub Res Arm Lab Res Traps Triggered 11 | . 1 . 1 . 1 3 3 . 1 . . . . . . 1 . . Indirectly 2 | . . . . . . . 2 . . . . . . . . . . . Trap Hack Attempts . | . . . . . . . . . . . . . . . . . . . Triggered . | . . . . . . . . . . . . . . . . . . . Disarmed . | . . . . . . . . . . . . . . . . . . . Reprogrammed 9 | . 9 . . . . . . . . . . . . . . . . . Reused 5 | . 2 . . . . . 3 . . . . . . . . . . . Traps Extracted . | . . . . . . . . . . . . . . . . . . . Installed 3 | . . . . . . . 3 . . . . . . . . . . . Triggered 9 | . 2 . . . . . 3 . . . . . . . . . . 4 Most Traps Carried 3 | . . 3 3 3 3 3 3 . . . . . . . . . . . Machines | -11 -10 -10 -10 -8 -7 -7 -6 -5 -5 -4 -4 -4 -4 -4 -3 -3 -3 -2 ---------- Run | Yrd Mat Min Sub Mat Fac DSF Fac Fac DSF Fac Ext Cet Arc Hub Res Arm Lab Res Machines Disabled 53 | . . . . . . 1 31 . . . . . . . . 17 3 1 Max in Single Turn 16 | . . . . . . 1 16 . . . . . . . . 1 1 . Garrison Access 2 | . . . . . . . 2 . . . . . . . . . . . Network Hub 4 | . . . . . . . . . . . . . . 4 . . . . Machines Repaired . | . . . . . . . . . . . . . . . . . . . Machines Dismantled 1 | . . . . . . . . . . . . . . . . . 1 . Machines Sabotaged 3 | . . . . . . . . . . . . . . 3 . . . . Overloaded Fab Kills . | . . . . . . . . . . . . . . . . . . . Hacking | -11 -10 -10 -10 -8 -7 -7 -6 -5 -5 -4 -4 -4 -4 -4 -3 -3 -3 -2 --------- Run | Yrd Mat Min Sub Mat Fac DSF Fac Fac DSF Fac Ext Cet Arc Hub Res Arm Lab Res Machines Accessed 47 | . 10 1 1 3 1 . 9 2 . 7 . . . 5 . 8 . . Terminals 33 | . 8 . . 3 1 . 5 2 . 5 . . . 5 . 4 . . Fabricators 7 | . . . . . . . 2 . . 1 . . . . . 4 . . Repair Stations . | . . . . . . . . . . . . . . . . . . . Recycling Units 2 | . 2 . . . . . . . . . . . . . . . . . Scanalyzers 2 | . . . . . . . 1 . . 1 . . . . . . . . Garrison Access 1 | . . . . . . . 1 . . . . . . . . . . . Total Hacks 201 | . 58 1 3 9 1 . 42 4 . 20 . . . 21 . 42 . . Successful 134 | . 46 1 3 4 1 . 32 3 . 14 . . . 9 . 21 . . Failed 67 | . 12 . . 5 . . 10 1 . 6 . . . 12 . 21 . . Catastrophic 9 | . . . . . . . 2 . . 2 . . . 1 . 4 . . Database Lockouts . | . . . . . . . . . . . . . . . . . . . Manual 88 | . 38 . . 9 . . 15 . . 8 . . . 3 . 15 . . Terminals 156 | . 54 . . 9 1 . 29 4 . 14 . . . 21 . 24 . . Fabricators 29 | . . . . . . . 7 . . 4 . . . . . 18 . . Repair Stations . | . . . . . . . . . . . . . . . . . . . Recycling Units 4 | . 4 . . . . . . . . . . . . . . . . . Scanalyzers 7 | . . . . . . . 5 . . 2 . . . . . . . . Garrison Access 1 | . . . . . . . 1 . . . . . . . . . . . Terminal Hacks 87 | . 36 1 3 4 1 . 16 3 . 8 . . . 6 . 9 . . Record 4 | . . . 3 . . . . . . 1 . . . . . . . . Part Schematic 14 | . 3 . . 1 . . 4 1 . 2 . . . . . 3 . . Robot Schematic 7 | . 4 . . . . . . . . . . . . 3 . . . . Robot Analysis 6 | . 4 . . . . . 2 . . . . . . . . . . . Prototype ID Bank 14 | . 11 . . . . . 1 . . 1 . . . . . 1 . . Open Door 3 | . . 1 . . . . . . . . . . . . . 2 . . Open DSF 4 | . . . . . 1 . 1 1 . 1 . . . . . . . . Level Access Points 4 | . 1 . . 1 . . 1 . . 1 . . . . . . . . Branch Access Points 4 | . 1 . . 1 . . 1 . . 1 . . . . . . . . Emergency Access Points 1 | . 1 . . . . . . . . . . . . . . . . . Machine Index 1 | . . . . . . . . . . . . . . 1 . . . . Terminal Index 3 | . 1 . . . . . 1 1 . . . . . . . . . . Recycling Unit Index 1 | . 1 . . . . . . . . . . . . . . . . . Scanalyzer Index 1 | . . . . . . . 1 . . . . . . . . . . . Alert Level 1 | . . . . . . . 1 . . . . . . . . . . . Unreport Threat 3 | . . . . . . . 1 . . . . . . . . 2 . . Locate Traps 6 | . 3 . . 1 . . . . . 1 . . . . . 1 . . Reprogram Traps 3 | . 3 . . . . . . . . . . . . . . . . . Dispatch Records 1 | . . . . . . . . . . . . . . 1 . . . . Hauler Manifests 1 | . . . . . . . 1 . . . . . . . . . . . Registered Components 1 | . 1 . . . . . . . . . . . . . . . . . Registered Prototypes 1 | . 1 . . . . . . . . . . . . . . . . . Zone Layout 3 | . 1 . . . . . 1 . . . . . . 1 . . . . Fabricator Hacks 20 | . . . . . . . 6 . . 2 . . . . . 12 . . Load Schematic 11 | . . . . . . . 3 . . 1 . . . . . 7 . . Build 9 | . . . . . . . 3 . . 1 . . . . . 5 . . Repair Station Hacks . | . . . . . . . . . . . . . . . . . . . Recycling Unit Hacks 2 | . 2 . . . . . . . . . . . . . . . . . Report Inventory 2 | . 2 . . . . . . . . . . . . . . . . . Scanalyzer 7 | . . . . . . . 5 . . 2 . . . . . . . . Insert Component 3 | . . . . . . . 2 . . 1 . . . . . . . . Analyze 4 | . . . . . . . 3 . . 1 . . . . . . . . Garrison Access Hacks 1 | . . . . . . . 1 . . . . . . . . . . . Seal Access 1 | . . . . . . . 1 . . . . . . . . . . . Unauthorized Hacks 17 | . 8 . . . . . 4 . . 2 . . . 3 . . . . Terminals 13 | . 6 . . . . . 3 . . 1 . . . 3 . . . . Track 5 | . 3 . . . . . 2 . . . . . . . . . . . Assimilate 1 | . . . . . . . . . . 1 . . . . . . . . Botnet 4 | . 3 . . . . . 1 . . . . . . . . . . . Sabotage 3 | . . . . . . . . . . . . . . 3 . . . . Fabricators 2 | . . . . . . . 1 . . 1 . . . . . . . . Prioritize 2 | . . . . . . . 1 . . 1 . . . . . . . . Repair Stations . | . . . . . . . . . . . . . . . . . . . Recycling Units 2 | . 2 . . . . . . . . . . . . . . . . . Tunnel 2 | . 2 . . . . . . . . . . . . . . . . . Scanalyzers . | . . . . . . . . . . . . . . . . . . . Garrison Access . | . . . . . . . . . . . . . . . . . . . Data Cores Recovered 1 | . . . . 1 . . . . . . . . . . . . . . Used . | . . . . . . . . . . . . . . . . . . . Hacking Detections 30 | . 7 . . 3 . . 6 1 . 6 . . . 3 . 4 . . Full Trace Events 7 | . . . . 1 . . 2 . . 1 . . . . . 3 . . Feedback Events . | . . . . . . . . . . . . . . . . . . . Feedback Blocked . | . . . . . . . . . . . . . . . . . . . Robot Schematics Acquired 7 | . 4 . . . . . . . . . . . . 3 . . . . Robots Built 3 | . . . . . . . . . . . . . . . . 3 . . Authchips . | . . . . . . . . . . . . . . . . . . . Time 148 | . . . . . . . . . . . . . . . . 148 . . Total Robot Build Rating 3 | . . . . . . . . . . . . . . . . 3 . . Part Schematics Acquired 17 | . 3 . . 1 . . 6 1 . 3 . . . . . 3 . . Parts Built 12 | . . . . . . . 6 . . 2 . . . . . 4 . . Authchips . | . . . . . . . . . . . . . . . . . . . Time 251 | . . . . . . . 130 . . 58 . . . . . 63 . . Total Part Build Rating 60 | . . . . . . . 26 . . 14 . . . . . 20 . . Parts Repaired . | . . . . . . . . . . . . . . . . . . . Time . | . . . . . . . . . . . . . . . . . . . Parts Recycled . | . . . . . . . . . . . . . . . . . . . Recycled Matter . | . . . . . . . . . . . . . . . . . . . Retrieved Matter . | . . . . . . . . . . . . . . . . . . . Retrieved Components . | . . . . . . . . . . . . . . . . . . . Parts Scanalyzed 3 | . . . . . . . 2 . . 1 . . . . . . . . Part Schematics Acquired 3 | . . . . . . . 2 . . 1 . . . . . . . . Parts Damaged . | . . . . . . . . . . . . . . . . . . . Bothacking | -11 -10 -10 -10 -8 -7 -7 -6 -5 -5 -4 -4 -4 -4 -4 -3 -3 -3 -2 ------------ Run | Yrd Mat Min Sub Mat Fac DSF Fac Fac DSF Fac Ext Cet Arc Hub Res Arm Lab Res Used RIF Installer . | . . . . . . . . . . . . . . . . . . . Robots Hacked . | . . . . . . . . . . . . . . . . . . . Non-combat . | . . . . . . . . . . . . . . . . . . . Combat . | . . . . . . . . . . . . . . . . . . . Robot Hacks Applied . | . . . . . . . . . . . . . . . . . . . Relay Couplers Released 2 | . . . . . . . 2 . . . . . . . . . . . Machine Destruction 2 | . . . . . . . 2 . . . . . . . . . . . Fabnet Peak Effective % . | . . . . . . . . . . . . . . . . . . . Robots Rewired 16 | . . . 1 . . . . . . . . . . . . 12 . 3 Allies Hacked 1 | . . . . . . . . . . . . . . . . 1 . . Hacks Repelled . | . . . . . . . . . . . . . . . . . . . Allies | -11 -10 -10 -10 -8 -7 -7 -6 -5 -5 -4 -4 -4 -4 -4 -3 -3 -3 -2 -------- Run | Yrd Mat Min Sub Mat Fac DSF Fac Fac DSF Fac Ext Cet Arc Hub Res Arm Lab Res Total Allies 38 | . . 2 1 . 3 . . . . 1 . . . . . 15 . 16 Largest Group 12 | . . 2 2 1 . 3 2 . . 1 . . . . . 7 1 12 Highest-Rated Group 329 | . . 45 45 19 . 93 62 . . 26 . . . . . 329 14 263 Highest-Rated Ally 178 | . . 31 31 19 . 31 31 . . 26 . . . . . 56 14 178 Total Orders 4 | . . . . . . . . . . . . . . . . . 2 2 STAY 1 | . . . . . . . . . . . . . . . . . 1 . DROP 2 | . . . . . . . . . . . . . . . . . . 2 PICKUP 1 | . . . . . . . . . . . . . . . . . 1 . Ally Attacks 332 | . . 5 4 23 . 34 33 . . . . . . . . 139 . 94 Total Damage 7127 | . . 86 41 340 . 440 494 . . . . . . . . 4095 . 1631 Kills 37 | . . 1 1 3 . 4 2 . . . . . . . . 17 . 9 Allies Corrupted 2 | . . . . . . . . . . . . . . . . 1 . 1 Allies Melted . | . . . . . . . . . . . . . . . . . . . Intel | -11 -10 -10 -10 -8 -7 -7 -6 -5 -5 -4 -4 -4 -4 -4 -3 -3 -3 -2 ------- Run | Yrd Mat Min Sub Mat Fac DSF Fac Fac DSF Fac Ext Cet Arc Hub Res Arm Lab Res Robot Analysis Total 6 | . 4 . . . . . 2 . . . . . . . . . . . Derelict Logs Recovered 3 | . . 1 2 . . . . . . . . . . . . . . . Drone Launches . | . . . . . . . . . . . . . . . . . . . Drone Recoveries . | . . . . . . . . . . . . . . . . . . . Exploration | -11 -10 -10 -10 -8 -7 -7 -6 -5 -5 -4 -4 -4 -4 -4 -3 -3 -3 -2 ------------- Run | Yrd Mat Min Sub Mat Fac DSF Fac Fac DSF Fac Ext Cet Arc Hub Res Arm Lab Res Turns Passed 10141 | 223 643 647 3281 438 31 193 682 8 51 109 27 10 4 22 27 2453 424 868 Spaces Moved 7737 | 145 555 563 2212 251 30 167 906 52 97 461 191 80 34 125 182 1206 180 300 Core 33 | 8 . . . . . . . . . . . . . . 1 10 11 3 Treads 1677 | 75 . . . . . . . . . . . . . . . 1136 169 297 Legs . | . . . . . . . . . . . . . . . . . . . Wheels 3711 | 62 555 563 2212 251 30 38 . . . . . . . . . . . . Hover 60 | . . . . . . . . . . . . . . . . 60 . . Flight 2256 | . . . . . . 129 906 52 97 461 191 80 34 125 181 . . . Fastest Speed 6 | 50 80 90 90 95 95 31 6 14 6 14 14 6 6 14 14 50 50 50 Average Speed 89 | 119 89 90 108 114 102 51 22 14 14 14 14 11 9 14 14 149 148 160 Slowest Speed 250 | 160 90 105 110 125 110 200 96 14 70 76 14 14 14 14 50 160 155 250 Overloaded Moves 51 | . . . . . . . 2 . 8 . . 22 19 . . . . . Propulsion Burnouts . | . . . . . . . . . . . . . . . . . . . Robots Hopped 12 | . . . . . . . 5 . . 1 . 1 1 3 1 . . . Cave-ins Triggered . | . . . . . . . . . . . . . . . . . . . Exploration Rate (%) 46 | 8 96 96 96 19 2 87 25 3 91 16 39 49 53 18 10 59 94 14 Regions Visited 18 Branch Regions 8 Pre-discovered Areas 3 | . 2 . 1 . . . . . . . . . . . . . . . Known Exits Taken 16 | 1 1 1 1 1 1 . 1 1 . 1 1 1 1 1 1 1 1 . Unknown Exits Taken . | . . . . . . . . . . . . . . . . . . . Scrap Searched 11 | . . . 11 . . . . . . . . . . . . . . . Spaces Dug 26 | . . . . . . . 4 . 20 2 . . . . . . . . Terrain Destroyed 203 | 5 . . . 8 . 2 73 . 37 2 . . . . . 13 . 63 Melee 6 | . . . . . . . 4 . . 2 . . . . . . . . Projectile 18 | . . . . . . . . . . . . . . . . 6 . 12 AOE 173 | 5 . . . 8 . 2 69 . 37 . . . . . . 7 . 45 Terrain Rammed . | . . . . . . . . . . . . . . . . . . . Walls Destroyed . | . . . . . . . . . . . . . . . . . . . Machines Disabled . | . . . . . . . . . . . . . . . . . . . Actions | -11 -10 -10 -10 -8 -7 -7 -6 -5 -5 -4 -4 -4 -4 -4 -3 -3 -3 -2 --------- Run | Yrd Mat Min Sub Mat Fac DSF Fac Fac DSF Fac Ext Cet Arc Hub Res Arm Lab Res Total 10157 | 169 639 692 2907 343 30 259 1261 51 119 496 190 78 32 125 181 1763 323 499 Wait 1071 | . 24 103 541 37 . 22 134 . . 20 . . . 1 . 156 20 13 Move 7695 | 144 554 562 2211 250 29 166 895 51 96 457 190 77 31 119 179 1205 179 300 Hop 11 | . . . . . . . 5 . . 1 . 1 1 2 1 . . . Pick Up 28 | . 4 2 3 . . . 7 . . . . . . 1 . 8 2 1 Fast Attach 130 | 11 4 3 2 4 1 9 24 . 4 6 . . . . . 25 13 24 Attach 7 | . . 2 . . . . 3 . . . . . . . 1 . 1 . Detach 8 | . . 2 . . . . 5 . . . . . . . . 1 . . Swap 29 | . . . 2 . . 3 9 . 5 3 . . . 1 . 5 1 . Drop 98 | 3 5 4 3 2 . 4 27 . 3 6 . . . 1 . 13 23 4 Fire 560 | 11 33 7 106 32 . 7 16 . 2 . . . . . . 192 50 104 Melee 73 | . . . . . . 3 61 . 7 2 . . . . . . . . Ram . | . . . . . . . . . . . . . . . . . . . Kick . | . . . . . . . . . . . . . . . . . . . Crush 1 | . . . . . . . . . . . . . . . . 1 . . Escape Stasis 38 | . . . . . . 36 . . 1 1 . . . . . . . . Rewire 55 | . . . 5 . . . . . . . . . . . . 39 . 11 Trap 3 | . . . . . . . 3 . . . . . . . . . . . Miscellaneous 350 | . 15 7 34 18 . 9 72 . 1 . . . . . . 118 34 42 Route ------- -11/Scrapyard -10/Materials (discovered 5 exits: *Mat x3 / *Min / Sub) -10/Mines (discovered 3 exits: *Mat x2 / *Sub) -10/Subcaves (discovered 3 exits: *Mat x2 / *Rec) -8/Materials (discovered 3 exits: *Fac x3) -7/Factory (discovered 2 exits: Sto / DSF) -7/DSF -6/Factory (discovered 6 exits: *Fac x4 / Low x2) -5/Factory -5/DSF -4/Factory (discovered 8 exits: Res x4 / Upp x2 / *Ext x2) -4/Extension (discovered 2 exits: *Res / *Cet) -4/Cetus -4/Archives -4/Hub_04(d) -3/Research -3/Armory (discovered 3 exits: *Res x2 / *Lab) -3/Lab -2/Research History --------- Turn | Location | Event 3 | -11/Scrapyard | Identified exit to Materials 3 | -11/Scrapyard | Discovered exit to Materials (range 16) 5 | -11/Scrapyard | Upgraded with Propulsion slot (x1) 5 | -11/Scrapyard | Upgraded with Utility slot (x1) 5 | -11/Scrapyard | Upgraded with Weapon slot (x1) 205 | -11/Scrapyard | Upgraded with Utility slot (x1) 224 | -11/Scrapyard | Entered Materials 229 | -10/Materials | Identified exit to Mines 315 | -10/Materials | Build established: Hacker-Mutant 329 | -10/Materials | Identified exit to Materials 329 | -10/Materials | Discovered exit to Materials (range 11) 770 | -10/Materials | Identified exit to Subcaves 770 | -10/Materials | Discovered exit to Subcaves (range 16) 867 | -10/Materials | Entered Mines 869 | -10/Mines | Reached level 2 871 | -10/Mines | Met a Derelict bent on vengeance 926 | -10/Mines | Discovered exit to Materials (range 5) 1068 | -10/Mines | Discovered exit to Materials (range 10) 1079 | -10/Mines | Met a Derelict who couldn't figure out how to use a Trap Extractor 1085 | -10/Mines | Upgraded with Power slot (x1) 1085 | -10/Mines | Upgraded with Utility slot (x1) 1226 | -10/Mines | Found a hidden stash of uninstalled traps 1447 | -10/Mines | Discovered exit to Subcaves (range 3) 1514 | -10/Mines | Entered Subcaves 1514 | -10/Subcaves | Accompanied by 2 allies 1516 | -10/Subcaves | Reached level 3 1519 | -10/Subcaves | Led the pair of lost Derelicts to an unsafe place 1536 | -10/Subcaves | Learned location of Zion (-7) 1536 | -10/Subcaves | Met a Zionite searching for "candidates" 1539 | -10/Subcaves | Identified exit to Recycling 1539 | -10/Subcaves | Discovered exit to Recycling (range 8) 1750 | -10/Subcaves | Visited Clippyterm 1752 | -10/Subcaves | Learned Factory emergency access door positions 1809 | -10/Subcaves | Shifting Twisted Machinery released Mak. Thermal Plating 1857 | -10/Subcaves | Shifting Twisted Machinery released Barrage Gun 1882 | -10/Subcaves | Shifting Twisted Machinery released Flamer 1882 | -10/Subcaves | Shifting Twisted Machinery released Sub. Laser 2010 | -10/Subcaves | Ambushed by angry Subdweller bent on revenge 2092 | -10/Subcaves | Learned location of 1 exit from Materials 2406 | -10/Subcaves | Identified exit to Materials 2406 | -10/Subcaves | Discovered exit to Materials (range 6) 2572 | -10/Subcaves | A swath of the cavern ceiling suddenly collapsed 2805 | -10/Subcaves | Disturbed a concealed Subdweller 2878 | -10/Subcaves | Shifting Twisted Machinery released Sub. Laser 3584 | -10/Subcaves | Discovered exit to Materials (range 16) 4795 | -10/Subcaves | Entered Materials 4795 | -8/Materials | Accompanied by 1 ally 4796 | -8/Materials | Identified exit to Factory 4797 | -8/Materials | Reached level 4 4797 | -8/Materials | Reached level 5 4797 | -8/Materials | Reached level 6 4832 | -8/Materials | Reached level 7 4865 | -8/Materials | Upgraded with Weapon slot (x1) 5111 | -8/Materials | Upgraded with Utility slot (x1) 5151 | -8/Materials | Build established: Hacker-Skirmisher 5196 | -8/Materials | Reached level 8 5233 | -8/Materials | Entered Factory 5234 | -7/Factory | Identified exit to Storage 5235 | -7/Factory | Reached level 9 5249 | -7/Factory | Upgraded with Utility slot (x1) 5261 | -7/Factory | Allied Derelicts emerged from ambush trap array 5264 | -7/Factory | Identified exit to DSF 5264 | -7/Factory | Entered DSF 5264 | -7/DSF | Accompanied by 3 allies 5266 | -7/DSF | Reached level 10 5289 | -7/DSF | Additional patrols routed to DSF 5319 | -7/DSF | Reached level 11 5345 | -7/DSF | Upgraded with Propulsion slot (x1) 5353 | -7/DSF | Upgraded with Propulsion slot (x1) 5357 | -7/DSF | Identified exit to Factory 5357 | -7/DSF | Discovered exit to Factory (range 16) 5457 | -7/DSF | Entered Factory 5457 | -6/Factory | Accompanied by 2 allies 5459 | -6/Factory | Reached level 12 5459 | -6/Factory | Reached level 13 5496 | -6/Factory | Spotted B-75 Beast 5524 | -6/Factory | Fabricated Surge Thruster (x2) 5532 | -6/Factory | Garrison activated, responded to threat 5598 | -6/Factory | Identified exit to Factory 5601 | -6/Factory | Identified exit to Lower Caves 5604 | -6/Factory | Reached level 14 5623 | -6/Factory | Build established: Hacker-Sprinter 5681 | -6/Factory | Fabricated Imp. Surge Thruster? 5739 | -6/Factory | Fabricated Imp. Surge Thruster (x2) 5807 | -6/Factory | First assault squad dispatched 5916 | -6/Factory | Reached level 15 5988 | -6/Factory | Garrison activated, responded to threat 6026 | -6/Factory | Cargo convoy interrupted 6035 | -6/Factory | Reached level 16 6066 | -6/Factory | Found Prototype Launcher 6066 | -6/Factory | Identified Tesla Bomb Launcher 6068 | -6/Factory | Found Prototype Launcher 6068 | -6/Factory | Identified Adv. Micro-nuke Launcher 6072 | -6/Factory | Found Prototype Protection 6072 | -6/Factory | Identified Active Cooling Armor 6076 | -6/Factory | Destroyed 10 combat bots 6090 | -6/Factory | Upgraded with Propulsion slot (x1) 6093 | -6/Factory | Upgraded with Utility slot (x1) 6093 | -6/Factory | Upgraded with Propulsion slot (x2) 6139 | -6/Factory | Entered another Factory area 6141 | -5/Factory | Reached level 17 6147 | -5/Factory | Identified exit to DSF 6147 | -5/Factory | Entered DSF 6149 | -5/DSF | Reached level 18 6151 | -5/DSF | Upgraded with Power slot (x1) 6159 | -5/DSF | Additional patrols routed to DSF 6190 | -5/DSF | Identified exit to Factory 6190 | -5/DSF | Discovered exit to Factory (range 14) 6198 | -5/DSF | Entered Factory 6200 | -4/Factory | Reached level 19 6200 | -4/Factory | Reached level 20 6226 | -4/Factory | Upgraded with Utility slot (x1) 6249 | -4/Factory | Fabricated Adv. Surge Thruster? 6281 | -4/Factory | Upgraded with Utility slot (x1) 6295 | -4/Factory | Identified exit to Upper Caves 6295 | -4/Factory | Identified exit to Extension 6295 | -4/Factory | Identified exit to Research 6307 | -4/Factory | Entered Extension 6309 | -4/Extension | Reached level 21 6318 | -4/Extension | Spotted B-86 Titan 6319 | -4/Extension | Spotted B-86 Titan 6332 | -4/Extension | Identified exit to Cetus 6332 | -4/Extension | Discovered exit to Cetus (range 17) 6332 | -4/Extension | Discovered exit to Research (range 16) 6334 | -4/Extension | Entered Cetus 6336 | -4/Cetus | Spotted Cetus Guard 6336 | -4/Cetus | Spotted Cetus Guard 6336 | -4/Cetus | Spotted Cetus Guard 6336 | -4/Cetus | Spotted Cetus Guard 6341 | -4/Cetus | Identified exit to Archives 6341 | -4/Cetus | Discovered exit to Archives (range 16) 6344 | -4/Cetus | Entered Archives 6346 | -4/Archives | Identified exit to Hub_04(d) 6346 | -4/Archives | Discovered exit to Hub_04(d) (range 15) 6348 | -4/Archives | Entered Hub_04(d) 6350 | -4/Hub_04(d) | Reached level 22 6353 | -4/Hub_04(d) | Network Hub disabled 6359 | -4/Hub_04(d) | Network Hub disabled 6362 | -4/Hub_04(d) | Reached level 23 6362 | -4/Hub_04(d) | Network Hub disabled 6362 | -4/Hub_04(d) | Network Hub disabled 6368 | -4/Hub_04(d) | Discovered exit to Research (range 8) 6368 | -4/Hub_04(d) | Spotted Lightning 6368 | -4/Hub_04(d) | Spotted Lightning 6370 | -4/Hub_04(d) | Entered Research 6371 | -3/Research | Upgraded with Utility slot (x1) 6372 | -3/Research | Reached level 24 6396 | -3/Research | Identified exit to Armory 6396 | -3/Research | Discovered exit to Armory (range 5) 6397 | -3/Research | Released all parts (20) 6397 | -3/Research | Entered Armory 6399 | -3/Armory | Reached level 25 6807 | -3/Armory | Reached level 26 6908 | -3/Armory | Fabricated A-02 Transporter? 7006 | -3/Armory | P-80 Master assimilated allied Assassin 8a 7023 | -3/Armory | Build established: Hacker-Skirmisher 7073 | -3/Armory | Reached level 27 7080 | -3/Armory | Fabricated A-02 Transporter? 7168 | -3/Armory | Found Gamma Bomb Array 7310 | -3/Armory | Core integrity fell below 50% 7370 | -3/Armory | Fabricated Imp. Shield Generator (x2) 7429 | -3/Armory | Found Quantum Capacitor 7486 | -3/Armory | Identified exit to Research 7486 | -3/Armory | Discovered exit to Research (range 18) 7540 | -3/Armory | Reached level 28 7583 | -3/Armory | Destroyed 14 combat bots 7939 | -3/Armory | Identified exit to Lab 7939 | -3/Armory | Discovered exit to Lab (range 7) 8083 | -3/Armory | Discovered exit to Research (range 11) 8131 | -3/Armory | Fabricated Imp. Plasma Cutter (x2) 8188 | -3/Armory | Found Prototype Launcher 8188 | -3/Armory | Identified Hellfire Missile Launcher 8193 | -3/Armory | Found Prototype Launcher 8194 | -3/Armory | Identified Com. Tesla Bomb Launcher 8549 | -3/Armory | Fabricated A-02 Transporter (x1) 8850 | -3/Armory | Entered Lab 8850 | -3/Lab | Accompanied by 1 ally 8850 | -3/Lab | Discovered exit to Research (range 9) 8852 | -3/Lab | Reached level 29 8925 | -3/Lab | Gained access to the hidden lab's interior 8940 | -3/Lab | Detected by scanners 8942 | -3/Lab | Found Alien Artifact 8942 | -3/Lab | Identified Core Reset Matrix 8942 | -3/Lab | Used Core Reset Matrix 8946 | -3/Lab | Sensed 3 artifacts in vicinity 8950 | -3/Lab | Confronted by A5 8957 | -3/Lab | Disabled Active System Cloaker 8974 | -3/Lab | MAIN.C forces arrive to investigate 8986 | -3/Lab | Destroyed A5 8992 | -3/Lab | Reached level 30 9014 | -3/Lab | Discovered exit to Research (range 6) 9077 | -3/Lab | Found Integrated Mediator 9077 | -3/Lab | Installed Integrated Mediator, increased core attachment efficiency 9085 | -3/Lab | Found Core Expander 9085 | -3/Lab | Installed Core Expander, added new Weapon slot 9121 | -3/Lab | Found Prototype Protection 9121 | -3/Lab | Identified Hvy. Regenerative Plating 9125 | -3/Lab | Found Prototype Energy Gun 9125 | -3/Lab | Identified Hyp. EM Gauss Rifle 9158 | -3/Lab | Found Hyp. EM Gauss Rifle 9171 | -3/Lab | Found Prototype Hackware 9256 | -3/Lab | Identified Deep Network Scanner 9264 | -3/Lab | Released all parts (13) 9274 | -3/Lab | Entered Research 9274 | -2/Research | Accompanied by 1 ally 9297 | -2/Research | Found Prototype Reactor 9297 | -2/Research | Identified Singularity Reactor 9677 | -2/Research | Lost 3 allies 9691 | -2/Research | Core integrity fell below 50% 9706 | -2/Research | Cargo convoy interrupted 9706 | -2/Research | Emitted hypermatrix ping 9711 | -2/Research | Assembled emerged from beneath the floor 9757 | -2/Research | Reached level 31 9800 | -2/Research | Assembled emerged from beneath the floor 9860 | -2/Research | Lost 3 allies 9898 | -2/Research | Lost 3 allies 9903 | -2/Research | Build established: Hacker-Tank 9930 | -2/Research | Core integrity fell below 20% 9948 | -2/Research | Lost 5 allies 10112 | -2/Research | Intercept squad dispatched 10121 | -2/Research | Spotted Tracker 10121 | -2/Research | Spotted Tracker 10142 | -2/Research | Destroyed by Tracker with Linked Autogun Last Messages --------------- Tracker: "THREAT CONFIRMED. DEPLOY COMBAT PROGRAMMER." Tracker: "THREAT CONFIRMED. DEPLOY COMBAT PROGRAMMER." 10122_ U-05 Engineer lays Concrete. 10123_ ALERT: Construction progress impeded, dispatching reinforcements to local area. 10123_ P-80 Master resets P-80 Master, system corruption cleaned. 10127_ Activated siege mode. 10130_ Critical hit (Destroy). 10130_ Slug penetrates P-80 Master. 10134_ P-80 Master destroyed. 10134_ Slug penetrates Tracker. 10134_ Slug penetrates Wall. 10136_ Destroyed Prototype Device. 10138_ P-80 Master resets Tracker, system corruption cleaned. 10138_ Slug penetrates Tracker. 10138_ Slug penetrates Wall. Map ----- +----------------------------------------------------+ | ?????????????????????????????????????????????????? | | ?????????????????????????????????????????????????? | | ?????????????????????????????????????????????????? | | ?????????????????????????????????????????????????? | | ?????????????????????????????????????????????????? | | ?????????????????????????????????????????????????? | | ?????????????????????????????????????????????????? | | ????????????? [?=????????????????????????????????? | | ?????????????=%!%?#######????????????????????????? | | ?????????##??!=%=# ? #????????????????????????? | | ??????# ?? [!%# ? #????????????????????????? | | ??????# ? *%*# #????????????????????????? | | ??????# ? =[ # ##???????????????????????? | | ??????# ?!*? # "" ""??????????????????????? | | ??????# ?=?* # "" [ ""??????????????????????? | | ??????# ?[?!!# "" S"??????????????????????? | | ??????# ?%=%!# S """??????????????????????? | | ??????# ?#=### "" """??????????? ?#???????? | | ??????# ##%### "" ""???????????"" #???????? | | ??????# #%#%# "" ####????????""" ?????????? | | ??????# #!##= # #??????? " ]#???????? | | ??????# ##!# ]; ##????? "F" #???????? | | +##########;##*##;###;;;;;;;##### """ #???????? | | !=%|!! =! [! = ; #???????? | | %|!%= p=!%s!|!= # #???????? | | ===! p %[=@* / " #???????? | | * !s=%[ ; """" #???????? | | ####### != ###;######### # """" ?????????? | | ??????# * * #??# #??""""??????????? | | ####### == = # #??# #????????????????? | | ! # #??# #????????????????? | | #""" = #??# #????????????????? | | ? ? #""" #??# #????????????????? | | #""" #??# #????????????????? | | ######## #### # #??# #????????????????? | | #????# #??# #?? #??# #????????????????? | | #????#^^#??# #? #??# #????????????????? | | ######^ #??# ############# ####?????????????? | | / #??# #?????????????? | | ###### ##??? ##??#########+## #?????????????? | | ######/##### % T#?????????? #+#######???????? | | # # #?????????? # / #???????? | | # " % #??????????[ # #???????? | | # [ # #?????????? # ! #???????? | | # % */%%!]################% #???????? | | # %% *#[*!=! ? # #???????? | | # [[%=#%%!=! " #???????? | | ### = + ######## #### # #???????? | | ??#############"#######??# #??# # #???????? | | ?????????# #?## #??# # #???????? | +----------------------------------------------------+ Best States ------------- Heat Dissipation 109 Coolant Potential 100 Energy Generation 118 Energy Capacity 1700 Matter Stores 450 Matter Capacity 450 Sight Range 17 Robot Scan Range 26 Terrain Scan Range 24 Terrain Scan Density 285 ECM Strength 2 Power Amplification 40 Additional Mass Support 16 Base Temperature (-) 200 EM Shielding 2 Armor Coverage 1500 Resistance: KI 60 Resistance: TH 45 Resistance: EX 55 Resistance: EM 35 Resistance: I 35 Resistance: S 35 Resistance: P 35 Propulsion Shielding 33 Phase Shifting 15 Evasion (%) 79 Targeting Accuracy 6 Recoil Reduction 7 Energy Filtering 50 Salvage Targeting 3 Offensive Hacking 40 Defensive Hacking 20 Authchip Count 2 Trap Extractor Capacity 6 Item Schematics ----------------- None Robot Schematics ------------------ None Fabricated ------------ Surge Thruster | x2 | -6/Factory Imp. Surge Thruster | x2 | -6/Factory Imp. Surge Thruster | x2 | -6/Factory Adv. Surge Thruster | x2 | -4/Factory A-02 Transporter | x1 | -3/Armory A-02 Transporter | x1 | -3/Armory Imp. Shield Generator | x2 | -3/Armory Imp. Plasma Cutter | x2 | -3/Armory A-02 Transporter | x1 | -3/Armory Alien Tech Used ----------------- Core Reset Matrix Integrated Mediator Core Expander Achievements -------------- None Challenges ------------ None RPGLIKE | -11 -10 -10 -10 -8 -7 -7 -6 -5 -5 -4 -4 -4 -4 -4 -3 -3 -3 -2 --------- Run | Yrd Mat Min Sub Mat Fac DSF Fac Fac DSF Fac Ext Cet Arc Hub Res Arm Lab Res Levels Raised 30 | . . 1 1 5 1 2 5 1 1 2 1 . . 2 1 4 2 1 XP Earned 52021 | 6000 1485 1017 1700 6356 2533 2536 8032 1540 1704 2149 1000 500 500 2396 2000 6299 1801 2473 XP Spent 41000 | 4590 870 1600 1000 2200 1700 2000 11100 . 800 8300 . . . . 2900 1120 . 2820 Upgrades 82 | 13 3 2 1 2 1 3 11 . 1 16 . . . . 1 12 . 16 Power Slot 2 | . . 1 . . . . . . 1 . . . . . . . . . Propulsion Slot 6 | 1 . . . . . 2 3 . . . . . . . . . . . Utility Slot 9 | 2 . 1 . 1 1 . 1 . . 2 . . . . 1 . . . Weapon Slot 2 | 1 . . . 1 . . . . . . . . . . . . . . Core Integrity 20 | . . . . . . . . . . . . . . . . 8 . 12 Heat Dissipation 8 | . 2 . . . . . 2 . . . . . . . . 4 . . Energy Generation 3 | . . . . . . . 2 . . 1 . . . . . . . . Mass Support 3 | . . . . . . 1 2 . . . . . . . . . . . Inventory Capacity 5 | 2 1 . 1 . . . 1 . . . . . . . . . . . Sight Range 1 | 1 . . . . . . . . . . . . . . . . . . Sensor Range 13 | . . . . . . . . . . 13 . . . . . . . . Terrain Scan Density 2 | 2 . . . . . . . . . . . . . . . . . . Hack Attack % 2 | 2 . . . . . . . . . . . . . . . . . . Hack Defense % 2 | 2 . . . . . . . . . . . . . . . . . . EX Resistance % 4 | . . . . . . . . . . . . . . . . . . 4 Protomatter Created 4549 | . 78 105 418 318 . 48 726 . 4 . . . . . . 1974 228 650 Integrity Restored 6665 | . 239 124 634 281 . 191 1376 . 12 . . . . . . 2490 346 972 Core 4942 | . 149 54 418 188 . 136 981 . 12 . . . . . . 1860 172 972 Parts 1723 | . 90 70 216 93 . 55 395 . . . . . . . . 630 174 . Protomatter Decayed 2718 | . 41 54 189 242 . 53 263 . . . . . . . . 1179 109 588 Game ------ Seed ImprinterAlloyReconfigurator Manual? 0 Play Time 02:23:12 Cumulative 620.9 hours Start 2024.03.18 @ 22:34:56 End 2024.03.19 @ 01:28:01 Sessions 1 Manual Loads 0 Difficulty Explorer Special Mode Winter2019/RPGLIKE Game No. 235 Rogue 211 Adventurer 3 Explorer 21 Win Type - Total 14 Types 9/2/1/1/0/1/0/0/0 Lore% 88 Gallery% 95 Achievement% 82 Wizard Run 0 Options --------- Layout 2 ASCII 0 Keyboard 0 Movement Numpad Keybinds 0 Fullscreen 2 Font 24/Smallcaps Map View 50x44 Zoom Use 0% Tactical HUD 1 Map Filters NONE Filters NONE Steam X RUN: ddd336d2-619a-4ec3-b038-9850e9fb3b25